bitfinex-derivatives/quotes_SOLF0:USTF0_20241230
["timestamp","ask_amount","ask_price","bid_price","bid_amount"]
[1735560160033,2.5858,193.7,193.65,10.78677768]
[1735560160825,2.5858,193.7,193.65,8.20037768]
[1735560161031,8.20037768,193.73,193.67,2.5862]
[1735560161225,3.0486,193.78,193.64,3.1355]
[1735560161432,2.5853,193.74,193.69,10.78627768]
[1735560162424,10.78547768,193.75,193.7,2.5858]
[1735560162623,10.78547768,193.75,193.69,8.20037768]
[1735560162935,3.0486,193.78,193.65,1.4822]
[1735560162936,8.20037768,193.77,193.71,8.20037768]
[1735560163235,8.20037768,193.77,193.71,10.78597768]
[1735560164335,2.5851,193.76,193.71,10.78597768]
[1735560164533,8.20037768,193.77,193.71,10.78597768]
[1735560165059,8.20037768,193.77,193.7,2.5858]
[1735560165060,2.5851,193.75,193.7,2.5858]
[1735560165243,8.20037768,193.75,193.69,8.20037768]
[1735560166237,1.5134,193.78,193.68,3.0]
[1735560166436,8.20037768,193.73,193.68,3.0]
[1735560166736,10.78587768,193.73,193.68,3.0]
[1735560166933,8.20037768,193.73,193.67,10.78657768]
[1735560168227,2.5855,193.72,193.67,10.78657768]
[1735560171835,2.5855,193.72,193.67,8.20037768]
[1735560172041,2.5854,193.74,193.67,8.20037768]
[1735560173139,2.5854,193.73,193.69,2.5859]
[1735560173836,8.20037768,193.75,193.67,8.20037768]
[1735560174140,8.20037768,193.75,193.69,8.20037768]
[1735560174439,8.20037768,193.77,193.69,8.20037768]
[1735560174940,2.5851,193.75,193.71,2.5856]
[1735560176532,10.78537768,193.76,193.72,2.5855]
[1735560176740,3.33175695,193.8,193.71,8.20037768]
[1735560177035,8.20037768,193.79,193.73,8.20037768]
[1735560177444,2.98,193.85,193.75,8.20037768]
[1735560177739,86.36668044,193.96,193.75,8.20037768]
[1735560177740,2.98,193.88,193.79,8.20037768]
[1735560177941,10.78407768,193.86,193.81,2.5842]
[1735560178142,8.20037768,193.86,193.81,2.5842]
[1735560178738,8.20037768,193.88,193.82,2.5841]
[1735560179039,8.20037768,193.88,193.81,8.20037768]
[1735560179340,2.583,193.91,193.85,10.78407768]
[1735560179738,2.583,193.91,193.85,8.20037768]
[1735560179935,8.20037768,193.92,193.83,2.98]
[1735560180142,2.5837,193.86,193.81,11.18037768]
[1735560180341,12.80304353,193.9,193.79,2.98]
[1735560180643,2.584,193.84,193.79,2.98]
[1735560181631,2.584,193.84,193.79,5.5645]
[1735560182639,12.80304353,193.9,193.79,2.98]
[1735560182838,12.80304353,193.93,193.81,12.80304353]
[1735560183038,2.5832,193.9,193.85,2.5838]
[1735560183242,12.80304353,193.93,193.81,12.80304353]
[1735560183747,12.80304353,193.93,193.85,2.5837]
[1735560183748,2.5831,193.91,193.85,2.5837]
[1735560183949,2.5831,193.91,193.84,2.98]
[1735560184347,12.80304353,193.93,193.87,2.5835]
[1735560184942,15.38584353,193.93,193.87,2.5835]
[1735560185150,2.5828,193.93,193.87,2.5835]
[1735560185539,2.5828,193.93,193.88,2.5834]
[1735560186648,7.1353,193.95,193.89,2.5831]
[1735560187239,7.1353,193.95,193.84,2.98]
[1735560187240,4.5528,193.95,193.84,2.98]
[1735560187443,12.80304353,193.93,193.84,2.98]
[1735560187845,12.80304353,193.93,193.8,12.80304353]
[1735560188042,2.5831,193.91,193.85,2.5837]
[1735560189152,2.5831,193.91,193.86,2.5836]
[1735560190547,2.5828,193.93,193.87,2.5834]
[1735560191049,2.583,193.92,193.86,2.5835]
[1735560192649,2.583,193.92,193.87,2.5835]
[1735560196256,2.5827,193.94,193.88,2.5834]
[1735560196458,4.5528,193.95,193.88,2.5834]
[1735560196657,4.5528,193.95,193.82,2.98]
[1735560196856,4.5528,193.95,193.83,8.50527207]
[1735560197055,2.5826,193.94,193.82,2.98]
[1735560197247,4.5528,193.95,193.83,8.50158678]
[1735560197450,4.5528,193.95,193.82,2.98]
[1735560197650,4.5528,193.95,193.83,8.50187781]
[1735560197858,2.5827,193.93,193.82,2.98]
[1735560198159,2.5827,193.93,193.83,10.10034578]
[1735560198360,4.5528,193.95,193.89,2.5832]
[1735560198555,2.5826,193.94,193.83,1.5992]
[1735560199555,2.5825,193.95,193.86,12.80304353]
[1735560199764,2.5825,193.95,193.87,2.98]
[1735560200259,2.5825,193.95,193.9,8.18582887]
[1735560200559,2.5823,193.96,193.9,8.18582887]
[1735560200859,15.96355887,193.98,193.9,8.18582887]
[1735560201361,2.5825,193.95,193.91,2.5829]
[1735560201658,2.5825,193.95,193.9,8.18582887]
[1735560202054,4.5568,194.01,193.94,8.18582887]
[1735560202257,4.5568,194.01,193.92,2.98]
[1735560202452,2.5819,194.0,193.96,2.5823]
[1735560203452,2.5817,194.01,193.96,2.5822]
[1735560203860,15.76565155,194.05,193.92,4.4455]
[1735560204058,3.0741,194.04,193.92,4.4455]
[1735560204264,2.5821,193.98,193.94,2.5825]
[1735560205450,12.78565155,194.02,193.91,2.5829]
[1735560205852,2.5824,193.96,193.9,2.98]
[1735560206160,2.5824,193.96,193.92,2.5828]
[1735560209072,2.5824,193.96,193.9,2.98]
[1735560209273,2.5823,193.97,193.93,2.5827]
[1735560209571,12.78565155,194.01,193.91,2.98]
[1735560209769,2.98,194.02,193.91,15.76565155]
[1735560210275,17.39805155,194.04,193.91,15.76565155]
[1735560210276,2.98,194.03,193.91,15.76565155]
[1735560210776,2.98,194.03,193.94,12.78565155]
[1735560211582,2.5818,194.0,193.97,2.5822]
[1735560211876,2.98,194.03,193.94,12.78565155]
[1735560212075,2.5819,193.99,193.91,15.76565155]
[1735560212371,2.98,194.03,193.91,15.76565155]
[1735560212579,17.39805155,194.04,193.91,15.76565155]
[1735560212580,2.5818,194.0,193.96,2.5822]
[1735560214475,2.5818,194.0,193.97,2.5822]
[1735560216672,4.6124,194.04,193.94,2.5825]
[1735560216874,4.6124,194.04,193.93,2.98]
[1735560217276,2.5817,194.01,193.96,2.5823]
[1735560217981,2.5817,194.01,193.97,2.5821]
[1735560218381,4.6124,194.04,193.93,2.98]
[1735560218575,2.5815,194.03,193.99,2.5819]
[1735560219384,2.5815,194.03,193.98,2.582]
[1735560219574,2.5815,194.02,193.98,2.582]
[1735560224288,10.76282623,194.02,193.98,2.582]
[1735560225185,4.6124,194.04,193.97,8.18132623]
[1735560225384,9.65812623,194.04,193.99,2.5818]
[1735560225980,12.23942623,194.04,193.99,2.5818]
[1735560227080,2.5814,194.03,193.99,2.5818]
[1735560229391,9.65812623,194.04,193.97,8.18132623]
[1735560229591,8.18132623,194.02,193.95,8.18132623]
[1735560229989,2.5817,194.01,193.97,2.5821]
[1735560230589,2.5817,194.01,193.98,2.582]
[1735560230786,8.18132623,194.02,193.97,8.18132623]
[1735560230989,10.76282623,194.02,193.97,8.18132623]
[1735560231395,9.65812623,194.04,193.97,8.18132623]
[1735560231588,2.5814,194.03,193.97,8.18132623]
[1735560232390,2.5814,194.03,193.99,2.5818]
[1735560239395,1.5462,194.1,194.01,8.18132623]
[1735560239699,8.18132623,194.07,194.01,8.18132623]
[1735560239900,2.581,194.06,194.02,2.5814]
[1735560242604,8.18132623,194.08,194.01,8.18132623]
[1735560242605,2.5809,194.07,194.03,2.5813]
[1735560243209,8.18132623,194.08,194.04,2.5812]
[1735560243210,2.5807,194.08,194.04,2.5812]
[1735560243501,2.5807,194.08,194.05,11.16132623]
[1735560243702,2.5802,194.12,194.07,10.76202623]
[1735560243903,8.18132623,194.12,193.95,3.1689]
[1735560244102,8.18132623,194.1,194.04,8.18132623]
[1735560245504,2.5807,194.08,194.04,10.76242623]
[1735560245906,8.18132623,194.08,194.0,11.16132623]
[1735560246411,2.581,194.06,194.02,2.5815]
[1735560248304,2.581,194.06,194.0,11.16132623]
[1735560248508,8.18132623,194.08,194.0,2.98]
[1735560248707,2.5809,194.07,194.02,8.18132623]
[1735560249111,2.5809,194.07,194.03,2.5813]
[1735560249712,8.18132623,194.08,194.02,8.18132623]
[1735560249909,2.5807,194.09,194.04,8.18132623]
[1735560250307,2.5804,194.11,194.04,8.18132623]
[1735560250510,8.18132623,194.12,194.04,8.18132623]
[1735560250812,8.18132623,194.12,194.06,8.18132623]
[1735560251109,8.18132623,194.12,194.04,8.18132623]
[1735560251308,8.18132623,194.1,194.04,8.18132623]
[1735560251811,8.18132623,194.11,194.01,1.5905]
[1735560252010,8.18132623,194.11,194.03,8.18132623]
[1735560252512,2.98,194.14,194.05,8.18132623]
[1735560252714,8.18132623,194.12,194.05,8.18132623]
[1735560252910,10.76162623,194.12,194.07,2.5808]
[1735560253517,10.76162623,194.12,194.08,2.5807]
[1735560255616,2.98,194.15,194.02,2.98]
[1735560255819,8.18132623,194.08,194.02,2.98]
[1735560256011,8.18132623,194.08,194.01,8.18132623]
[1735560256813,8.18132623,194.08,194.0,8.18132623]
[1735560257813,8.18132623,194.08,194.01,2.5815]
[1735560257814,2.5811,194.05,194.01,2.5815]
[1735560258615,2.5813,194.04,194.0,10.76312623]
[1735560260714,8.18132623,194.07,194.0,8.18132623]
[1735560260918,1.4742,194.09,194.0,8.18132623]
[1735560261123,8.18132623,194.06,193.98,8.18132623]
[1735560261320,8.18132623,194.04,193.95,4.5916]
[1735560261617,8.18132623,194.0,193.91,28.29112354]
[1735560261825,2.5825,193.95,193.92,8.58408473]
[1735560262122,8.18132623,193.98,193.91,36.47244977]
[1735560262315,8.18132623,193.98,193.92,8.58626191]
[1735560262519,8.18132623,193.98,193.91,8.18132623]
[1735560262823,2.5824,193.96,193.91,10.76422623]
[1735560264020,11.16132623,194.0,193.93,8.18132623]
[1735560265721,2.98,194.04,193.95,8.18132623]
[1735560265920,8.18132623,194.03,193.97,8.18132623]
[1735560266326,8.18132623,194.03,193.97,10.76342623]
[1735560266526,8.18132623,194.03,193.95,8.18132623]
[1735560267534,2.5818,194.0,193.95,8.18132623]
[1735560267833,8.18132623,194.03,193.95,8.18132623]
[1735560268426,8.18132623,194.03,193.97,8.18132623]
[1735560268927,3.0292,194.08,193.99,8.18132623]
[1735560268928,2.5811,194.05,193.99,8.18132623]
[1735560269533,8.18132623,194.06,193.99,8.18132623]
[1735560269732,10.76242623,194.06,193.99,8.18132623]
[1735560269935,10.76242623,194.06,194.0,8.56334818]
[1735560270234,2.5811,194.05,193.99,8.18132623]
[1735560271437,8.18132623,194.06,193.99,8.18132623]
[1735560271735,37.07900978,194.09,194.01,8.18132623]
[1735560271935,35.60480978,194.09,194.03,8.18132623]
[1735560272139,8.18132623,194.1,194.03,8.18132623]
[1735560272532,8.18132623,194.1,194.06,2.5809]
[1735560272935,2.5809,194.07,194.03,11.16132623]
[1735560273334,8.18132623,194.1,194.03,11.16132623]
[1735560274534,2.5807,194.08,194.03,13.74272623]
[1735560274736,8.18132623,194.1,194.03,11.16132623]
[1735560274936,2.5807,194.08,194.03,11.16132623]
[1735560275139,8.18132623,194.1,194.03,11.16132623]
[1735560275441,2.581,194.06,194.03,2.98]
[1735560275635,2.581,194.06,193.99,3.0464]
[1735560275636,8.18132623,194.08,194.0,8.18132623]
[1735560275837,8.18132623,194.06,194.0,8.18132623]
[1735560276439,2.5813,194.04,194.0,2.5818]
[1735560276842,8.18132623,194.06,194.0,2.5818]
[1735560277744,2.5811,194.05,194.0,2.5818]
[1735560278145,8.18132623,194.06,193.99,14.20772623]
[1735560278146,2.5808,194.08,194.03,2.5813]
[1735560278742,2.5808,194.08,194.04,2.5812]
[1735560278935,8.18132623,194.07,194.01,8.18132623]
[1735560279138,8.18132623,194.07,193.99,14.20772623]
[1735560279744,2.5811,194.05,194.0,2.5818]
[1735560279940,2.5811,194.05,194.0,10.76312623]
[1735560280445,2.5811,194.05,194.01,2.5816]
[1735560281745,2.5811,194.05,194.0,10.76312623]
[1735560281941,8.18132623,194.07,193.99,3.0464]
[1735560282140,2.5815,194.02,193.97,8.18132623]
[1735560282340,2.98,194.1,193.96,8.18132623]
[1735560282341,8.18132623,194.03,193.96,8.18132623]
[1735560282944,8.18132623,194.03,193.96,10.76362623]
[1735560283139,8.18132623,194.03,193.96,8.18132623]
[1735560283540,2.5818,194.0,193.96,8.18132623]
[1735560283945,8.18132623,194.03,193.96,8.18132623]
[1735560284447,8.18132623,193.97,193.86,28.29112354]
[1735560284649,8.18132623,193.92,193.87,8.5855748]
[1735560284843,8.18132623,193.92,193.88,4.52880636]
[1735560285037,8.18132623,193.92,193.86,28.29112354]
[1735560285243,3.0,193.96,193.87,10.76482623]
[1735560285244,2.5828,193.93,193.87,10.76482623]
[1735560285444,8.18132623,193.94,193.87,8.18132623]
[1735560285749,8.18132623,193.94,193.89,10.76452623]
[1735560285949,8.18132623,193.94,193.89,8.18132623]
[1735560287449,10.76402623,193.94,193.89,8.18132623]
[1735560288951,10.76402623,193.94,193.89,10.76452623]
[1735560289145,8.18132623,193.94,193.89,8.18132623]
[1735560289349,8.18132623,193.96,193.91,8.18132623]
[1735560289743,2.5827,193.93,193.89,8.18132623]
[1735560290653,2.5826,193.94,193.89,8.18132623]
[1735560291248,8.18132623,193.96,193.9,2.5831]
[1735560291448,10.76372623,193.96,193.9,2.5831]
[1735560291648,8.18132623,193.96,193.89,8.18132623]
[1735560292955,2.5827,193.94,193.89,8.18132623]
[1735560293855,8.18132623,193.96,193.89,8.18132623]
[1735560294055,2.5827,193.93,193.88,2.5834]
[1735560294249,2.5827,193.93,193.89,8.18132623]
[1735560294855,8.18132623,193.96,193.89,8.18132623]
[1735560295059,2.583,193.91,193.87,10.76482623]
[1735560295360,2.583,193.91,193.87,2.5835]
[1735560295748,2.5831,193.9,193.86,2.5836]
[1735560296453,2.5834,193.88,193.83,7.3051]
[1735560296648,2.5834,193.88,193.83,12.90252623]
[1735560297453,2.5834,193.88,193.84,2.5839]
[1735560297857,8.18132623,193.9,193.81,3.0]
[1735560298158,2.5835,193.87,193.83,2.584]
[1735560300163,8.18132623,193.9,193.84,8.18132623]
[1735560300457,2.5834,193.89,193.84,10.76522623]
[1735560300658,8.18132623,193.9,193.84,10.76522623]
[1735560300959,2.5834,193.88,193.84,10.76522623]
[1735560301159,8.18132623,193.9,193.84,8.18132623]
[1735560301362,3.0,193.97,193.88,8.18132623]
[1735560301560,8.18132623,193.95,193.88,8.18132623]
[1735560301960,8.18132623,193.93,193.85,3.0]
[1735560302156,8.18132623,193.91,193.83,8.18132623]
[1735560302360,2.5836,193.86,193.83,8.18132623]
[1735560302559,8.18132623,193.87,193.81,8.18132623]
[1735560302757,8.18132623,193.87,193.79,8.18132623]
[1735560303958,2.584,193.84,193.79,10.76582623]
[1735560304157,8.18132623,193.85,193.79,8.18132623]
[1735560304362,8.18132623,193.85,193.81,2.5843]
[1735560305059,10.76522623,193.85,193.8,2.5844]
[1735560305757,3.0,193.87,193.8,2.5844]
[1735560305961,2.5838,193.85,193.81,2.5843]
[1735560306261,8.18132623,193.88,193.81,8.18132623]
[1735560306561,4.6224,193.91,193.87,2.5834]
[1735560306562,8.18132623,193.91,193.87,2.5834]
[1735560306856,8.18132623,193.91,193.83,11.18132623]
[1735560307061,8.18132623,193.91,193.83,13.76532623]
[1735560307260,8.18132623,193.89,193.83,13.76532623]
[1735560308559,2.5835,193.87,193.83,13.76532623]
[1735560309562,1.5764,193.93,193.8,2.5843]
[1735560309563,8.18132623,193.85,193.8,2.5843]
[1735560309861,8.18132623,193.83,193.78,5.14792656]
[1735560310262,2.5843,193.82,193.78,5.14792656]
[1735560310759,2.5843,193.82,193.78,7.73262656]
[1735560311768,10.76542623,193.83,193.78,7.73262656]
[1735560311970,8.18132623,193.83,193.78,5.14792656]
[1735560312163,8.18132623,193.85,193.78,13.32925279]
[1735560312364,10.76522623,193.85,193.78,13.32925279]
[1735560312662,10.76522623,193.85,193.8,2.5844]
[1735560312964,8.18132623,193.85,193.8,2.5844]
[1735560314469,2.584,193.84,193.8,2.5844]
[1735560316574,10.76512623,193.85,193.81,2.5843]
[1735560317171,8.18132623,193.85,193.82,2.5841]
[1735560318768,2.5837,193.86,193.82,2.5841]
[1735560321669,2.5835,193.87,193.83,2.584]
[1735560321870,8.18132623,193.92,193.84,8.18132623]
[1735560322269,8.18132623,193.92,193.86,8.18132623]
[1735560322574,8.18132623,193.94,193.86,8.18132623]
[1735560322773,8.18132623,193.94,193.88,8.18132623]
[1735560323076,8.18132623,193.94,193.86,8.18132623]
[1735560324074,8.18132623,193.94,193.88,8.18132623]
[1735560324273,8.18132623,193.92,193.82,3.0]
[1735560324476,8.18132623,193.89,193.83,8.58892586]
[1735560324766,8.18132623,193.89,193.82,3.0]
[1735560324971,8.18132623,193.87,193.82,3.0]
[1735560325173,8.18132623,193.87,193.81,7.07278088]
[1735560325368,8.18132623,193.85,193.81,7.07278088]
[1735560325769,8.18132623,193.83,193.81,7.07278088]
[1735560325977,8.18132623,193.83,193.79,2.5846]
[1735560325978,10.76542623,193.83,193.79,2.5846]
[1735560326474,2.5839,193.84,193.8,2.5844]
[1735560326774,2.5839,193.84,193.78,13.32925279]
[1735560327471,2.5839,193.84,193.79,11.20689146]
[1735560327681,8.18132623,193.85,193.8,8.62068891]
[1735560327976,8.18132623,193.85,193.8,2.5844]
[1735560328272,8.18132623,193.85,193.78,13.32925279]
[1735560328577,2.584,193.84,193.79,8.62491446]
[1735560328768,2.584,193.84,193.8,8.62491446]
[1735560328980,8.18132623,193.85,193.81,4.5496352]
[1735560329173,2.5841,193.83,193.79,2.5846]
[1735560329372,8.18132623,193.83,193.8,8.63057062]
[1735560329569,8.18132623,193.83,193.78,5.14792656]
[1735560329772,2.5843,193.82,193.79,8.63209028]
[1735560329972,8.18132623,193.83,193.8,8.63209028]
[1735560330171,8.18132623,193.83,193.78,5.14792656]
[1735560330374,10.76542623,193.83,193.79,2.5845]
[1735560330570,8.18132623,193.85,193.79,4.55313071]
[1735560330974,8.18132623,193.85,193.79,8.63152489]
[1735560331376,10.76522623,193.85,193.81,2.5842]
[1735560331579,2.5839,193.85,193.81,2.5842]
[1735560332177,2.584,193.84,193.8,10.76572623]
[1735560332377,2.584,193.84,193.8,2.5844]
[1735560333784,2.584,193.84,193.81,4.55610283]
[1735560334084,2.5838,193.86,193.82,4.55610283]
[1735560334280,2.5838,193.86,193.8,8.18132623]
[1735560334479,8.18132623,193.87,193.81,4.5585918]
[1735560334682,2.5838,193.85,193.82,4.5585918]
[1735560334880,2.5838,193.85,193.81,2.5842]
[1735560335182,2.5838,193.85,193.82,4.55915141]
[1735560335383,2.5838,193.85,193.81,2.5842]
[1735560335678,2.5838,193.85,193.82,7.14642523]
[1735560335883,2.5838,193.85,193.82,2.5842]
[1735560336382,2.5838,193.85,193.83,4.56639668]
[1735560336590,2.5838,193.85,193.82,2.5842]
[1735560337184,3.0493,193.9,193.83,8.64872748]
[1735560337389,8.18132623,193.89,193.84,8.64872748]
[1735560337590,8.18132623,193.89,193.82,8.18132623]
[1735560337889,8.18132623,193.89,193.83,8.6502911]
[1735560338089,8.18132623,193.89,193.84,8.6502911]
[1735560338290,2.5834,193.88,193.85,8.65202779]
[1735560338491,2.5834,193.88,193.84,2.5839]
[1735560338691,2.5834,193.88,193.85,8.65472795]
[1735560338990,8.18132623,193.89,193.84,2.5839]
[1735560338991,8.18132623,193.91,193.84,8.18132623]
[1735560339191,8.18132623,193.87,193.85,8.65448993]
[1735560339398,8.18132623,193.87,193.81,3.0]
[1735560339692,2.5839,193.85,193.82,8.65806854]
[1735560339892,3.0,193.9,193.83,8.65806854]
[1735560340187,8.18132623,193.84,193.78,8.14792656]
[1735560340391,8.18132623,193.84,193.79,8.66307381]
[1735560340593,2.5842,193.82,193.8,8.66307381]
[1735560340794,2.5842,193.82,193.81,8.66307381]
[1735560340995,8.18132623,193.84,193.81,8.66307381]
[1735560341190,10.76562623,193.82,193.78,5.14792656]
[1735560341390,8.18132623,193.82,193.79,8.66332293]
[1735560341692,8.18132623,193.82,193.78,5.14792656]
[1735560341889,8.18132623,193.82,193.79,8.66535482]
[1735560342195,12.8080809,193.85,193.8,4.57086585]
[1735560342394,12.8080809,193.85,193.78,5.14792656]
[1735560342596,12.8080809,193.85,193.79,8.66474802]
[1735560342792,12.8080809,193.85,193.8,8.66474802]
[1735560342991,12.8080809,193.85,193.81,8.66481644]
[1735560343191,12.8080809,193.85,193.78,5.14792656]
[1735560343491,2.5841,193.83,193.79,8.66476853]
[1735560343690,2.5841,193.83,193.8,8.66476853]
[1735560343882,2.5841,193.83,193.81,8.66476853]
[1735560344084,2.5841,193.83,193.78,5.14792656]
[1735560344283,2.5841,193.83,193.79,8.66338488]
[1735560344495,2.5841,193.83,193.8,8.66338488]
[1735560344695,2.5841,193.83,193.81,8.66338488]
[1735560344995,2.5841,193.83,193.78,5.14792656]
[1735560345188,2.5841,193.83,193.79,8.6631075]
[1735560345392,2.5841,193.83,193.8,8.6631075]
[1735560345586,2.5841,193.83,193.81,8.6631075]
[1735560345790,2.5841,193.83,193.79,2.5846]
[1735560346092,12.8080809,193.85,193.8,8.65815961]
[1735560346395,12.8080809,193.85,193.78,5.14792656]
[1735560346590,12.8080809,193.85,193.79,11.24188439]
[1735560346789,12.8080809,193.85,193.8,8.65738439]
[1735560346994,12.8080809,193.85,193.81,8.65738439]
[1735560347185,2.5841,193.83,193.79,2.5845]
[1735560347386,2.5841,193.83,193.8,8.66166021]
[1735560347592,2.5841,193.83,193.81,8.66166021]
[1735560347896,2.5841,193.83,193.79,2.5845]
[1735560348092,2.5841,193.83,193.8,8.66178465]
[1735560348293,2.5841,193.83,193.81,8.66178465]
[1735560348495,2.5841,193.83,193.79,2.5845]
[1735560348698,2.5841,193.83,193.8,8.66224036]
[1735560348991,2.5841,193.83,193.81,8.66224036]
[1735560349190,2.5841,193.83,193.79,2.5845]
[1735560349390,2.5841,193.83,193.8,8.66203269]
[1735560349589,2.5841,193.83,193.81,8.66203269]
[1735560349784,2.5841,193.83,193.79,2.5845]
[1735560349994,2.5842,193.82,193.8,8.66007935]
[1735560350189,2.5842,193.82,193.78,7.73262656]
[1735560350402,2.5842,193.82,193.79,8.65867796]
[1735560350692,2.5842,193.82,193.8,8.65867796]
[1735560350893,2.5842,193.82,193.78,7.73262656]
[1735560351093,2.5842,193.82,193.79,8.6592373]
[1735560351294,2.5842,193.82,193.8,8.6592373]
[1735560351489,2.5842,193.82,193.78,7.73262656]
[1735560351691,2.5842,193.82,193.79,8.6591188]
[1735560351995,2.5842,193.82,193.8,8.6591188]
[1735560352297,2.5842,193.82,193.78,7.73262656]
[1735560352595,2.5841,193.83,193.79,11.24471296]
[1735560352784,2.5841,193.83,193.8,8.66011296]
[1735560352986,2.5841,193.83,193.81,8.66011296]
[1735560353192,2.5841,193.83,193.79,2.5846]
[1735560353497,2.5841,193.83,193.8,8.658499]
[1735560353794,2.5839,193.85,193.81,8.658499]
[1735560353995,2.5839,193.85,193.8,2.5844]
[1735560354195,12.8080809,193.88,193.81,8.65701934]
[1735560354398,2.5839,193.84,193.82,8.65701934]
[1735560354595,2.5839,193.84,193.8,2.5844]
[1735560354798,2.5839,193.84,193.81,8.65608853]
[1735560355000,12.8080809,193.88,193.82,8.65608853]
[1735560355187,2.5836,193.87,193.8,3.0]
[1735560355395,12.8080809,193.91,193.81,8.65586991]
[1735560355699,12.8080809,193.91,193.82,8.65586991]
[1735560355896,12.8080809,193.91,193.83,8.65586991]
[1735560356099,12.8080809,193.91,193.81,4.4747]
[1735560356304,12.8080809,193.91,193.82,8.65075695]
[1735560356599,12.8080809,193.91,193.83,8.65075695]
[1735560356802,12.8080809,193.91,193.84,8.65075695]
[1735560357100,12.8080809,193.91,193.81,4.4747]
[1735560357303,2.5833,193.89,193.85,2.5837]
[1735560357503,2.5833,193.89,193.86,8.65036449]
[1735560357704,2.5833,193.89,193.85,2.5837]
[1735560358001,2.5834,193.88,193.86,8.64780461]
[1735560358203,2.5834,193.88,193.84,2.5839]
[1735560358411,2.5834,193.88,193.85,8.64704754]
[1735560358606,2.5834,193.88,193.85,2.5838]
[1735560360299,2.5833,193.89,193.85,2.5838]
[1735560362706,2.5834,193.88,193.85,2.5838]
[1735560363003,12.8080809,193.91,193.81,4.4747]
[1735560363211,2.5839,193.85,193.82,8.64352094]
[1735560363506,2.5839,193.85,193.83,8.64352094]
[1735560363711,2.5839,193.85,193.81,2.5842]
[1735560363904,2.5839,193.85,193.82,8.64585587]
[1735560364104,2.5839,193.85,193.83,8.64585587]
[1735560364305,10.77773839,193.86,193.82,2.5841]
[1735560364605,8.19403839,193.86,193.83,8.6468309]
[1735560364811,8.19403839,193.86,193.84,8.6468309]
[1735560365104,8.19403839,193.86,193.85,4.56118094]
[1735560365299,8.19403839,193.86,193.84,2.5839]
[1735560366410,8.19403839,193.86,193.8,3.0]
[1735560366611,8.19403839,193.86,193.81,8.64090231]
[1735560366812,8.19403839,193.86,193.84,2.5839]
[1735560367706,8.19403839,193.86,193.85,4.55714221]
[1735560368205,8.19403839,193.86,193.85,8.64024491]
[1735560370612,8.19403839,193.86,193.85,11.22404491]
[1735560370808,8.19403839,193.88,193.85,11.22404491]
[1735560371014,8.19403839,193.88,193.86,8.64738931]
[1735560371209,8.19403839,193.88,193.86,2.5835]
[1735560372607,8.19403839,193.88,193.83,2.584]
[1735560372813,8.19403839,193.88,193.84,8.64657187]
[1735560373107,8.19403839,193.86,193.85,8.64657187]
[1735560373316,10.77783839,193.86,193.82,2.5841]
[1735560373512,10.77783839,193.86,193.83,8.6489642]
[1735560373815,10.77783839,193.86,193.84,8.6489642]
[1735560374008,10.77783839,193.86,193.82,2.5841]
[1735560374214,10.77783839,193.86,193.83,8.6491991]
[1735560374413,8.19403839,193.86,193.84,11.2330991]
[1735560374616,8.19403839,193.86,193.84,2.5839]
[1735560375011,8.19403839,193.86,193.85,4.56190492]
[1735560375515,8.19403839,193.86,193.85,8.64915701]
[1735560375717,8.19403839,193.86,193.85,8.64927323]
[1735560376214,8.19403839,193.86,193.85,4.0883054]
[1735560376421,8.19403839,193.86,193.85,8.65242125]
[1735560376714,8.19403839,193.86,193.85,11.23622125]
[1735560377517,8.19403839,193.86,193.85,8.65242125]
[1735560378519,8.19403839,193.86,193.85,11.23622125]
[1735560379325,8.19403839,193.86,193.85,11.23721967]
[1735560381224,8.19403839,193.88,193.86,2.5836]
[1735560382528,10.77743839,193.88,193.81,8.19403839]
[1735560382725,8.19403839,193.86,193.82,8.65488933]
[1735560383022,8.19403839,193.86,193.83,8.65488933]
[1735560383219,8.19403839,193.86,193.84,8.65488933]
[1735560383528,10.77773839,193.86,193.79,8.19403839]
[1735560383818,8.19403839,193.82,193.8,8.65908091]
[1735560384024,8.19403839,193.82,193.77,28.29112354]
[1735560384226,8.19403839,193.8,193.78,8.66415888]
[1735560384426,8.19403839,193.8,193.79,8.66415888]
[1735560385319,8.19403839,193.8,193.79,8.66285525]
[1735560386720,10.77823839,193.82,193.79,8.66285525]
[1735560386927,10.77823839,193.82,193.8,8.66285525]